fUSD/lending_fUSD_20260201
["ID","MTS","AMOUNT","RATE_DAILY","PERIOD"]
[404234292,1769982643034,-233.51889341,0.00017018,2]
[404234293,1769982643044,-1592.87721993,0.00017018,2]
[404234294,1769982643053,-500.0,0.00017018,2]
[404234295,1769982643062,-743.53578902,0.00017194,2]
[404234296,1769982643071,-4011.68564718,0.00017254,2]
[404234297,1769982643081,-1000.0,0.0001726,2]
[404234298,1769982643090,-2665.23477612,0.00017304,2]
[404234299,1769982643099,-198.47607565,0.00017355,2]
[404234300,1769982643108,-216.0,0.00017443,2]
[404234301,1769982643117,-167.31008018,0.00017446,2]
[404234302,1769982643127,-5888.0,0.00017474,2]
[404234303,1769982643136,-5888.0,0.00017514,2]
[404234304,1769982643147,-1000.0,0.00017534,2]
[404234305,1769982643156,-168.0,0.00017538,2]
[404234306,1769982643166,-481.0,0.00017542,2]
[404234307,1769982643175,-201.93286099,0.00017566,2]
[404234308,1769982643185,-242.15909246,0.00017566,2]
[404234309,1769982643194,-1651.81367706,0.00017566,2]
[404234310,1769982643205,-500.0,0.00017566,2]
[404234311,1769982643214,-5888.0,0.00017602,2]
[404234312,1769982643225,-2665.23477612,0.00017602,2]
[404234313,1769982643235,-1898.85844425,0.00017626,2]
[404234314,1769982643245,-914.58949328,0.0001764,2]
[404234315,1769982643254,-3495.695,0.0001768,2]
[404234316,1769982643263,-1410.0,0.0001768,2]
[404234317,1769982643272,-726.399,0.0001768,2]
[404234320,1769982643281,-1334.0,0.0001768,2]
[404234321,1769982643292,-1272.033,0.0001768,2]
[404234322,1769982643303,-174.174,0.0001768,2]
[404234323,1769982643312,-3252.0,0.0001768,2]
[404234324,1769982643321,-6577.0,0.0001768,2]
[404234325,1769982643330,-2445.0,0.0001768,2]
[404234326,1769982643341,-481.0,0.00017695,2]
[404234327,1769982643351,-25000.0,0.00017724,3]
[404234328,1769982643359,-2935.8,0.00017728,2]
[404234329,1769982643368,-180.8671,0.0001773,2]
[404234330,1769982643377,-1000.0,0.0001773,2]
[404234331,1769982643387,-25000.0,0.00017733,3]
[404234332,1769982643396,-25000.0,0.00017742,3]
[404234333,1769982643406,-1000.0,0.00017745,2]
[404234334,1769982643416,-25000.0,0.0001775,3]
[404234335,1769982643426,-25000.0,0.00017759,3]
[404234336,1769982643434,-168.0,0.00017766,2]
[404234337,1769982643443,-25000.0,0.00017768,3]
[404234338,1769982643452,-25000.0,0.00017777,3]
[404234339,1769982643461,-25000.0,0.00017786,3]
[404234340,1769982643469,-25000.0,0.00017794,3]
[404234341,1769982643479,-25000.0,0.00017803,3]
[404234342,1769982643490,-599.60298507,0.00017807,2]
[404234343,1769982643499,-1000.0,0.00017808,2]
[404234344,1769982643510,-10138.3866,0.0001781,2]
[404234345,1769982643520,-25000.0,0.00017812,3]
[404234346,1769982643530,-25000.0,0.00017821,3]
[404234347,1769982643540,-6660.54141683,0.00017829,2]
[404234348,1769982643550,-25000.0,0.0001783,3]
[404234349,1769982643559,-109605.83836455,0.0001783,2]
[404234350,1769982643569,-25000.0,0.00017838,3]
[404234351,1769982643581,-925.0,0.00017844,2]
[404234352,1769982643591,-25000.0,0.00017847,3]
[404234353,1769982643602,-25000.0,0.00017856,3]
[404234354,1769982643612,-6649.0,0.00017865,2]
[404234355,1769982643621,-25000.0,0.00017865,3]
[404234356,1769982643631,-25000.0,0.00017874,3]
[404234357,1769982643641,-25000.0,0.00017882,3]
[404234358,1769982643652,-25000.0,0.00017891,3]
[404234359,1769982643661,-8159.7875519,0.000179,3]
[404234360,1769982643673,-1711.20567707,0.000179,2]
[404234361,1769982643682,-1178.58501652,0.000179,2]
[404234362,1769982643693,-636.38929602,0.000179,2]
[404234363,1769982643704,-525.5584,0.000179,2]
[404234364,1769982643715,-25000.0,0.000179,3]
[404234365,1769982643726,-487.12969413,0.000179,2]
[404234366,1769982643737,-2665.23477612,0.000179,2]
[404234367,1769982643747,-743.53578902,0.000179,3]
[404234368,1769982643756,-182.92227029,0.000179,2]
[404234369,1769982643767,-198.47607565,0.000179,2]
[404234370,1769982643777,-167.31008018,0.000179,2]
[404234371,1769982643786,-4011.68564718,0.000179,2]
[404234372,1769982643796,-109236.5456027,0.0001791,2]
[404234373,1769982643805,-5094.0625122,0.0001791,2]
[404234374,1769982643815,-3491.3757852,0.0001791,2]
[404234375,1769982643824,-79445.7422163,0.0001791,2]
[404234376,1769982643834,-17726.7411839,0.0001791,2]
[404234377,1769982643843,-356177.9556735,0.0001791,2]
[404234378,1769982643852,-16426.291935,0.0001791,2]
[404234379,1769982643863,-925.0,0.00017935,2]
[404234380,1769982643875,-150.0,0.00017999,2]
[404234381,1769982643883,-150.0,0.00017999,2]
[404234382,1769982643893,-150.0,0.00017999,2]
[404234383,1769982643902,-150.0,0.00017999,2]
[404234384,1769982643910,-195.53835104,0.00017999,2]
[404234385,1769982643919,-300.0,0.00017999,2]
[404234386,1769982643928,-300.0,0.00017999,2]
[404234387,1769982643937,-487.0,0.00017999,2]
[404234388,1769982643946,-487.0,0.00017999,2]
[404234389,1769982643955,-487.0,0.00017999,2]
[404234390,1769982643964,-487.0,0.00017999,2]
[404234391,1769982643973,-487.0,0.00017999,2]
[404234392,1769982643991,-487.0,0.00017999,2]
[404234393,1769982644002,-487.0,0.00017999,2]
[404234394,1769982644011,-487.0,0.00017999,2]
[404234395,1769982644020,-487.0,0.00017999,2]
[404234396,1769982644029,-487.0,0.00017999,2]
[404234397,1769982644040,-501.16,0.00017999,2]
[404234398,1769982644049,-1000.68755277,0.00018,2]
[404234399,1769982644058,-308482.28891849,0.00018,2]
[404234400,1769982644218,-352.01776263,0.00018,2]
[404234401,1769982644233,-494.93936382,0.00018,2]
[404234408,1769982645601,-777.01082101,0.00018,2]
[404234409,1769982645930,-1000.0,0.00017624,2]
[404234410,1769982645940,-593655.94838259,0.00018,2]
[404234450,1769983282373,-150.0,0.00021726,60]
[404234451,1769983282397,-500.0,0.00021726,60]
[404234452,1769983282419,-150.0,0.00021726,60]
[404234453,1769983282443,-150.0,0.00021726,60]
[404234454,1769983282466,-500.0,0.00021726,60]
[404234455,1769983282489,-229.5686788,0.00021726,60]
[404234456,1769983282512,-500.0,0.00021726,60]
[404234457,1769983282542,-150.0,0.00021726,60]
[404234458,1769983282571,-458.0,0.00021726,60]
[404234459,1769983282594,-312.4313212,0.00021726,60]
[404234472,1769983539198,-156.95111861,0.00014373,2]
[404234473,1769983539224,-500.0,0.00014373,2]
[404234474,1769983539255,-500.0,0.00014373,2]
[404234479,1769983566248,500.0,0.00014373,2]
[404234480,1769983567963,500.0,0.00014373,2]
[404234481,1769983568465,500.0,0.00014373,2]
[404234483,1769983569633,500.0,0.00014373,2]
[404234484,1769983569855,501.53662804,0.00014373,2]
[404234488,1769983570781,500.0,0.00014373,2]
[404234492,1769983571736,500.0,0.00014373,2]
[404234493,1769983571779,500.0,0.00014373,2]
[404234500,1769983605332,498.33164123,0.00014587,2]
[404234501,1769983605360,724.3169004,0.00014587,2]
[404234513,1769983675880,-166.66,0.00013504,2]
[404234514,1769983684206,-166.66,0.00013788,2]
[404234515,1769983696024,295.0,0.00014521,3]
[404234591,1769983831633,-166.66,0.00014072,2]
[404234594,1769983831642,-177.92828678,0.00014257,2]
[404234596,1769983831652,-166.66,0.00014357,2]
[404234598,1769983831661,-47.5143925,0.00014372,2]
[404234602,1769983831697,-252.4856075,0.00014372,2]
[404234603,1769983831706,-1078.77763769,0.00014372,2]
[404234604,1769983831867,-121.22236231,0.00014372,2]
[404234605,1769983831876,-287.03509089,0.00014373,2]
[404234606,1769983831887,-212.96490911,0.00014373,2]
[404234608,1769983831898,-110.36434539,0.00014373,2]
[404234610,1769983831909,-389.63565461,0.00014373,2]
[404234612,1769983831918,-614.54645313,0.00014373,2]
[404234614,1769983831927,-8.90471918,0.00014373,2]
[404234616,1769983831938,-491.09528082,0.00014373,2]
[404234618,1769983831947,-500.0,0.00014373,2]
[404234620,1769983831956,-509.39048434,0.00014373,2]
[404234622,1769983831965,-500.0,0.00014373,2]
[404234624,1769983831974,-500.0,0.00014373,2]
[404234626,1769983831984,-500.0,0.00014373,2]
[404234628,1769983831993,-500.0,0.00014373,2]
[404234630,1769983832002,-500.0,0.00014373,2]
[404234632,1769983832012,-295.53432577,0.0001445,2]
[404234634,1769983832021,-295.53432577,0.0001445,2]
[404234636,1769983832030,-295.53432577,0.0001445,2]
[404234638,1769983832039,-374.34541225,0.00014587,2]
[404234639,1769983832048,-2370.26565528,0.00014587,2]
[404234640,1769983832059,-607.56498033,0.00014587,2]
[404234641,1769983832070,-947.96197807,0.00014587,2]
[404234642,1769983832083,-288.69969753,0.00014587,2]
[404234643,1769983832093,-166.66,0.00014641,2]
[404234644,1769983832104,-498.8,0.00014705,2]
[404234645,1769983832114,-1395.886,0.00014817,2]
[404234646,1769983832124,-168.668,0.00014817,2]
[404234647,1769983832133,-150.0,0.00014818,2]
[404234648,1769983832142,-1507.3207,0.00014819,2]
[404234649,1769983832151,-167.31008018,0.00014821,2]
[404234650,1769983832161,-165.39672975,0.00014821,2]
[404234651,1769983832170,-11235.19933281,0.00014821,2]
[404234652,1769983832179,-150.0,0.00014892,2]
[404234653,1769983832188,-203.07289044,0.00014918,2]
[404234654,1769983832197,-318.31778366,0.00014918,2]
[404234655,1769983832206,-500.0,0.00014918,2]
[404234656,1769983832216,-437.00038158,0.00014918,2]
[404234657,1769983832225,-77132.25070144,0.00014919,2]
[404234658,1769983832243,-3444.2674592,0.00014919,2]
[404234659,1769983832253,-293.48857706,0.00014919,2]
[404234660,1769983832265,-1691.67677193,0.00014919,2]
[404234661,1769983832276,-2424.42970357,0.00014919,2]
[404234664,1769983837763,-390.805764,0.00014919,2]
[404234665,1769983837879,-351.88118535,0.00014919,2]
[404234666,1769983837891,-436.75223375,0.00014919,2]
[404234667,1769983837937,-251.80538329,0.00014919,2]
[404234757,1769983839832,-162.37656471,0.00014821,2]
[404234758,1769983839842,-1198.91343529,0.00014919,2]
[404234760,1769983839922,-2812383.72878512,0.00014919,2]
[404234761,1769983839933,-500.0,0.00014921,2]
[404234762,1769983839942,-500.0,0.00014921,2]
[404234763,1769983839955,-500.0,0.00014921,2]
[404234764,1769983839964,-500.0,0.00014921,2]
[404234765,1769983839982,-166.66,0.00014925,2]
[404234766,1769983839997,-310.76989175,0.00014963,2]
[404234767,1769983840006,-696.0,0.00014968,2]
[404234768,1769983840015,-250.0,0.00015,2]
[404234769,1769983840024,-500.0,0.00015,2]
[404234770,1769983840034,-500.0,0.00015,2]
[404234771,1769983840043,-500.0,0.00015,2]
[404234772,1769983840053,-193.08170808,0.00015,2]
[404234773,1769983840062,-6660.54141683,0.00015018,2]
[404234774,1769983840071,-394.18732145,0.00015019,2]
[404234775,1769983840081,-33283.9349,0.00015019,2]
[404234776,1769983840090,-1000.0,0.00015019,2]
[404234777,1769983840099,-994.0923,0.00015019,2]
[404234778,1769983840108,-7434.86399671,0.00015087,2]
[404234779,1769983840118,-200.0,0.0001511,2]
[404234780,1769983840127,-500.0,0.0001511,2]
[404234781,1769983840137,-151.0,0.0001511,2]
[404234782,1769983840147,-500.0,0.0001511,2]
[404234783,1769983840156,-151.0,0.0001511,2]
[404234784,1769983840166,-500.0,0.0001511,2]
[404234785,1769983840175,-151.0,0.0001511,2]
[404234786,1769983840185,-500.0,0.0001511,2]
[404234787,1769983840194,-500.0,0.0001511,2]
[404234788,1769983840203,-151.0,0.0001511,2]
[404234789,1769983840213,-500.0,0.0001511,2]
[404234790,1769983840223,-151.0,0.0001511,2]
[404234791,1769983840232,-500.0,0.0001511,2]
[404234792,1769983840244,-151.0,0.0001511,2]
[404234793,1769983840253,-500.0,0.0001511,2]
[404234794,1769983840266,-151.0,0.0001511,2]
[404234795,1769983840277,-500.0,0.0001511,2]
[404234796,1769983840286,-151.0,0.0001511,2]
[404234797,1769983840296,-500.0,0.0001511,2]
[404234798,1769983840305,-500.0,0.0001511,2]
[404234799,1769983840315,-151.0,0.0001511,2]
[404234800,1769983840324,-500.0,0.0001511,2]
[404234801,1769983840334,-500.0,0.0001511,2]
[404234802,1769983840343,-151.0,0.0001511,2]
[404234803,1769983840353,-500.0,0.0001511,2]
[404234804,1769983840366,-500.0,0.0001511,2]
[404234805,1769983840376,-151.0,0.0001511,2]
[404234806,1769983840385,-500.0,0.0001511,2]
[404234807,1769983840396,-151.0,0.0001511,2]
[404234808,1769983840406,-500.0,0.0001511,2]
[404234809,1769983840416,-151.0,0.0001511,2]
[404234810,1769983840427,-500.0,0.0001511,2]
[404234811,1769983840436,-153.98079146,0.0001511,2]
[404234812,1769983840447,-500.0,0.0001511,2]
[404234813,1769983840456,-500.0,0.0001511,2]
[404234814,1769983840466,-500.0,0.0001511,2]
[404234815,1769983840476,-500.0,0.0001511,2]
[404234816,1769983840486,-500.0,0.0001511,2]
[404234817,1769983840503,-151.0,0.0001511,2]
[404234818,1769983840513,-151.0,0.0001511,2]
[404234819,1769983840522,-151.0,0.0001511,2]
[404234820,1769983840531,-151.0,0.0001511,2]
[404234821,1769983840540,-151.0,0.0001511,2]
[404234822,1769983840550,-151.0,0.0001511,2]
[404234823,1769983840559,-151.0,0.0001511,2]
[404234824,1769983840569,-151.0,0.0001511,2]
[404234825,1769983840579,-151.0,0.0001511,2]
[404234826,1769983840588,-151.0,0.0001511,2]
[404234827,1769983840597,-151.0,0.0001511,2]
[404234829,1769983840856,-500.0,0.0001511,2]
[404234830,1769983840867,-465.78763801,0.0001511,2]
[404234831,1769983840877,-200.0,0.0001511,2]
[404234832,1769983840887,-11235.19933275,0.00015163,2]
[404234833,1769983840898,-167.31008018,0.00015437,2]
[404234834,1769983840909,-165.3967297,0.00015437,2]
[404234835,1769983840918,-498.8,0.00015441,2]
[404234836,1769983840929,-394.18732143,0.00015499,2]
[404234837,1769983840939,-500.0,0.00015501,2]
[404234839,1769983840949,-500.0,0.00015501,2]
[404234840,1769983840959,-11235.19933275,0.00015505,2]
[404234841,1769983840969,-743.53578904,0.00015542,2]
[404234842,1769983840978,-400.25248785,0.00015542,2]
[404234843,1769983840989,-378.38431742,0.00015564,2]
[404234844,1769983841001,-1251.80770273,0.00015564,2]
[404234845,1769983841010,-184.44067477,0.00015564,2]
[404234846,1769983841019,-3254.62917349,0.00015564,2]
[404234847,1769983841029,-578.20924308,0.00015642,2]
[404234848,1769983841039,-231.86721235,0.00015642,2]
[404234849,1769983841049,-500.0,0.00015642,2]
[404234850,1769983841058,-500.0,0.00015642,2]
[404234851,1769983841067,-209.40437684,0.00015642,2]
[404234852,1769983841080,-500.0,0.00015642,2]
[404234853,1769983841089,-500.0,0.00015642,2]
[404234854,1769983841099,-277.35679052,0.00015642,2]
[404234855,1769983841108,-500.0,0.00015642,2]
[404234856,1769983841117,-500.0,0.00015642,2]
[404234857,1769983841127,-500.0,0.00015642,2]
[404234858,1769983841136,-500.0,0.00015642,2]
[404234859,1769983841145,-500.0,0.00015642,2]
[404234860,1769983841154,-500.0,0.00015642,2]
[404234861,1769983841164,-500.0,0.00015642,2]
[404234862,1769983841173,-151.0,0.00015642,2]
[404234863,1769983841182,-500.0,0.00015642,2]
[404234864,1769983841192,-500.0,0.00015642,2]
[404234865,1769983841202,-151.0,0.00015642,2]
[404234866,1769983841211,-500.0,0.00015642,2]
[404234867,1769983841221,-151.0,0.00015642,2]
[404234868,1769983841230,-500.0,0.00015642,2]
[404234869,1769983841240,-500.0,0.00015642,2]
[404234870,1769983841254,-151.0,0.00015642,2]
[404234871,1769983841264,-500.0,0.00015642,2]
[404234872,1769983841273,-500.0,0.00015642,2]
[404234873,1769983841283,-500.0,0.00015642,2]
[404234874,1769983841293,-500.0,0.00015642,2]
[404234876,1769983841303,-151.0,0.00015642,2]
[404234877,1769983841312,-500.0,0.00015642,2]
[404234878,1769983841321,-151.0,0.00015642,2]
[404234879,1769983841330,-500.0,0.00015642,2]
[404234880,1769983841339,-151.0,0.00015642,2]
[404234881,1769983841348,-250.0,0.00015642,2]
[404234882,1769983841357,-151.0,0.00015642,2]
[404234883,1769983841366,-250.0,0.00015642,2]
[404234884,1769983841375,-151.0,0.00015642,2]
[404234885,1769983841384,-250.0,0.00015642,2]
[404234886,1769983841393,-151.0,0.00015642,2]
[404234887,1769983841402,-250.0,0.00015642,2]
[404234888,1769983841411,-151.0,0.00015642,2]
[404234889,1769983841420,-250.0,0.00015642,2]
[404234890,1769983841429,-250.0,0.00015642,2]
[404234891,1769983841440,-151.0,0.00015642,2]
[404234892,1769983841450,-250.0,0.00015642,2]
[404234893,1769983841464,-250.0,0.00015642,2]
[404234894,1769983841474,-250.0,0.00015642,2]
[404234895,1769983841484,-250.0,0.00015642,2]
[404234896,1769983841496,-250.0,0.00015642,2]
[404234897,1769983841505,-721.12765535,0.00015642,2]
[404234898,1769983841514,-500.0,0.00015642,2]
[404234899,1769983841524,-859.80605061,0.00015642,2]
[404234900,1769983841533,-500.0,0.00015642,2]
[404234901,1769983841542,-500.0,0.00015642,2]
[404234902,1769983841551,-500.0,0.00015642,2]
[404234903,1769983841560,-500.0,0.00015642,2]
[404234904,1769983841570,-500.0,0.00015642,2]
[404234905,1769983841579,-500.0,0.00015642,2]
[404234907,1769983841588,-500.0,0.00015642,2]
[404234908,1769983841597,-250.0,0.00015642,2]
[404234909,1769983841606,-500.0,0.00015642,2]
[404234910,1769983841616,-174.61919141,0.00015642,2]
[404234911,1769983841625,-500.0,0.00015642,2]
[404234912,1769983841634,-500.0,0.00015642,2]
[404234913,1769983841643,-1428.38747117,0.00015642,2]
[404234914,1769983841652,-250.0,0.00015642,2]
[404234915,1769983841661,-250.0,0.00015642,2]
[404234916,1769983841671,-250.0,0.00015642,2]
[404234917,1769983841681,-250.0,0.00015642,2]
[404234918,1769983841690,-322.6107,0.00015642,2]
[404234919,1769983841699,-250.0,0.00015642,2]
[404234920,1769983841709,-250.0,0.00015642,2]
[404234921,1769983841719,-250.0,0.00015642,2]
[404234922,1769983841730,-250.0,0.00015642,2]
[404234923,1769983841740,-250.0,0.00015642,2]
[404234924,1769983841754,-250.0,0.00015642,2]
[404234925,1769983841763,-250.0,0.00015642,2]
[404234926,1769983841773,-250.0,0.00015642,2]
[404234927,1769983841782,-250.0,0.00015642,2]
[404234928,1769983841791,-250.0,0.00015642,2]
[404234929,1769983841800,-250.0,0.00015642,2]
[404234930,1769983841812,-250.0,0.00015642,2]
[404234931,1769983841822,-250.0,0.00015642,2]
[404234932,1769983841835,-250.0,0.00015642,2]
[404234933,1769983841844,-250.0,0.00015642,2]
[404234934,1769983841854,-250.0,0.00015642,2]
[404234935,1769983841867,-250.0,0.00015642,2]
[404234937,1769983841878,-250.0,0.00015642,2]
[404234938,1769983841888,-250.0,0.00015642,2]
[404234939,1769983841899,-250.0,0.00015642,2]
[404234940,1769983841908,-250.0,0.00015642,2]
[404234941,1769983841919,-250.0,0.00015642,2]
[404234942,1769983841929,-250.0,0.00015642,2]
[404234943,1769983841938,-250.0,0.00015642,2]
[404234944,1769983841947,-250.0,0.00015642,2]
[404234945,1769983841956,-250.0,0.00015642,2]
[404234946,1769983841966,-250.0,0.00015642,2]
[404234947,1769983841975,-250.0,0.00015642,2]
[404234948,1769983841984,-500.0,0.00015642,2]
[404234949,1769983842000,-500.0,0.00015642,2]
[404234950,1769983842010,-500.0,0.00015642,2]
[404234951,1769983842020,-500.0,0.00015642,2]
[404234952,1769983842029,-500.0,0.00015642,2]
[404234953,1769983842038,-500.0,0.00015642,2]
[404234954,1769983842047,-500.0,0.00015642,2]
[404234955,1769983842057,-500.0,0.00015642,2]
[404234956,1769983842067,-500.0,0.00015642,2]
[404234957,1769983842076,-500.0,0.00015642,2]
[404234958,1769983842086,-500.0,0.00015642,2]
[404234959,1769983842095,-500.0,0.00015642,2]
[404234960,1769983842104,-500.0,0.00015642,2]
[404234961,1769983842113,-500.0,0.00015642,2]
[404234962,1769983842122,-500.0,0.00015642,2]
[404234963,1769983842131,-500.0,0.00015642,2]
[404234964,1769983842141,-500.0,0.00015642,2]
[404234965,1769983842150,-500.0,0.00015642,2]
[404234967,1769983842159,-500.0,0.00015642,2]
[404234968,1769983842169,-500.0,0.00015642,2]
[404234969,1769983842178,-209.40437684,0.00015642,2]
[404234970,1769983842187,-500.0,0.00015642,2]
[404234971,1769983842196,-500.0,0.00015642,2]
[404234972,1769983842206,-500.0,0.00015642,2]
[404234973,1769983842216,-500.0,0.00015642,2]
[404234974,1769983842225,-209.40437684,0.00015642,2]
[404234975,1769983842235,-500.0,0.00015642,2]
[404234976,1769983842251,-500.0,0.00015642,2]
[404234977,1769983842261,-500.0,0.00015642,2]
[404234978,1769983842270,-500.0,0.00015642,2]
[404234979,1769983842280,-500.0,0.00015642,2]
[404234980,1769983842289,-500.0,0.00015642,2]
[404234981,1769983842298,-500.0,0.00015642,2]
[404234982,1769983842307,-500.0,0.00015642,2]
[404234983,1769983842317,-500.0,0.00015642,2]
[404234984,1769983842326,-200.0,0.00015658,2]
[404234985,1769983842335,-500.0,0.00015658,2]
[404234986,1769983842344,-200.0,0.00015658,2]
[404234987,1769983842354,-217.15233878,0.00015697,2]
[404234988,1769983842363,-420.0,0.00015739,2]
[404234989,1769983842372,-225.18697532,0.00015752,2]
[404234990,1769983842381,-152.0,0.00015779,2]
[404234991,1769983842390,-233.51889341,0.00015807,2]
[404234992,1769983842399,-1680.0,0.00015809,2]
[404234993,1769983842408,-300.0,0.0001581,2]
[404234994,1769983842419,-259.13988292,0.00015844,2]
[404234995,1769983842428,-4515.25155764,0.00015844,2]
[404234997,1769983842438,-242.15909246,0.00015862,2]
[404234998,1769983842447,-5936.69605047,0.00015872,2]
[404234999,1769983842455,-251.11897888,0.00015917,2]
[404235000,1769983842466,-8316.0,0.00015925,2]
[404235001,1769983842475,-255.0,0.00015944,2]
[404235002,1769983842486,-260.4103811,0.00015972,2]
[404235004,1769983842500,-394.18732143,0.00015979,2]
[404235006,1769983842509,-292.43,0.00016025,2]
[404235008,1769983842519,-270.0455652,0.00016027,2]
[404235010,1769983842528,-28411.16280945,0.0001605,2]
[404235012,1769983842536,-167.31008018,0.00016053,2]
[404235013,1769983842546,-165.3967297,0.00016053,2]
[404235015,1769983842555,-280.03725112,0.00016082,2]
[404235018,1769983842566,-11122.11188907,0.00016087,2]
[404235020,1769983842576,-15048.6039,0.00016087,2]
[404235022,1769983842585,-150.99,0.00016116,2]
[404235023,1769983842594,-298.36,0.00016116,2]
[404235026,1769983842603,-3408.52,0.00016116,2]
[404235028,1769983842614,-299.99,0.00016116,4]
[404235030,1769983842624,-290.39862941,0.00016137,2]
[404235032,1769983842633,-2500.0,0.00016176,2]
[404235034,1769983842643,-195.0,0.00016176,2]
[404235036,1769983842653,-250.0,0.00016176,2]
[404235038,1769983842663,-498.8,0.00016176,2]
[404235039,1769983842673,-217.15233878,0.0001619,2]
[404235040,1769983842682,-165.27928276,0.0001619,2]
[404235041,1769983842693,-868.52246271,0.0001619,2]
[404235042,1769983842703,-181.08010149,0.0001619,2]
[404235043,1769983842713,-1481.23780761,0.0001619,2]
[404235045,1769983842722,-217.15233878,0.0001619,2]
[404235046,1769983842731,-301.1433787,0.00016192,2]
[404235047,1769983842740,-500.0,0.00016206,2]
[404235048,1769983842755,-500.40958663,0.00016215,2]
[404235049,1769983842765,-500.0,0.00016215,2]
[404235050,1769983842775,-500.76188298,0.00016215,2]
[404235051,1769983842784,-160.17285395,0.00016215,2]
[404235052,1769983842793,-208.40720819,0.00016215,2]
[404235053,1769983842802,-613.82743494,0.00016215,2]
[404235054,1769983842811,-500.0,0.00016215,2]
[404235055,1769983842825,-276.18766446,0.00016215,2]
[404235056,1769983842834,-500.0,0.00016215,2]
[404235057,1769983842843,-161.96888035,0.00016215,2]
[404235058,1769983842853,-161.52754955,0.00016215,2]
[404235059,1769983842862,-500.44195081,0.00016215,2]
[404235060,1769983842872,-500.45016231,0.00016215,2]
[404235061,1769983842882,-500.0,0.00016215,2]
[404235062,1769983842892,-500.0,0.00016215,2]
[404235063,1769983842901,-500.0,0.00016215,2]
[404235064,1769983842911,-500.0,0.00016215,2]
[404235065,1769983842921,-500.0,0.00016215,2]
[404235066,1769983842930,-500.0,0.00016215,2]
[404235067,1769983842939,-182.39675522,0.00016215,2]
[404235068,1769983842949,-432.17920076,0.00016215,2]
[404235069,1769983842958,-500.0,0.00016215,2]
[404235070,1769983842967,-500.0,0.00016215,2]
[404235071,1769983842976,-500.0,0.00016215,2]
[404235072,1769983842985,-500.8695205,0.00016215,2]
[404235073,1769983843000,-500.0,0.00016215,2]
[404235075,1769983843009,-500.0,0.00016215,2]
[404235076,1769983843019,-500.0,0.00016215,2]
[404235077,1769983843028,-500.28379137,0.00016215,2]
[404235078,1769983843046,-597.93092721,0.00016215,2]
[404235079,1769983843056,-500.0,0.00016215,2]
[404235080,1769983843066,-500.52349132,0.00016215,2]
[404235081,1769983843074,-333.63674101,0.00016215,2]
[404235082,1769983843084,-160.18403092,0.00016215,2]
[404235083,1769983843094,-500.0,0.00016215,2]
[404235084,1769983843103,-500.36134052,0.00016215,2]
[404235085,1769983843113,-500.0,0.00016215,2]
[404235086,1769983843122,-210.3644324,0.00016215,2]
[404235087,1769983843132,-160.19860466,0.00016215,2]
[404235088,1769983843141,-160.07078646,0.00016215,2]
[404235089,1769983843150,-500.0,0.00016215,2]
[404235090,1769983843159,-463.54060625,0.00016215,2]
[404235091,1769983843168,-500.13624415,0.00016215,2]
[404235092,1769983843178,-500.0,0.00016215,2]
[404235093,1769983843187,-172.44250909,0.00016215,2]
[404235094,1769983843197,-175.77488165,0.00016215,2]
[404235095,1769983843207,-471.58451912,0.00016215,2]